fUSD/lending_fUSD_20251217
["ID","MTS","AMOUNT","RATE_DAILY","PERIOD"]
[398941465,1766011838735,-500.0,0.00013373,2]
[398941466,1766011838744,-299.0,0.00013389,2]
[398941467,1766011838754,-270.0,0.00013407,2]
[398941468,1766011838763,-20065.17829206,0.00013409,2]
[398941469,1766011838773,-887.0,0.00013431,2]
[398941470,1766011838782,-387.0,0.00013434,2]
[398941471,1766011838791,-1659.55,0.0001344,2]
[398941472,1766011838800,-500.0,0.0001344,2]
[398941473,1766011838810,-200.0,0.0001344,2]
[398941474,1766011838819,-200.0,0.0001344,2]
[398941475,1766011838828,-500.0,0.00013447,2]
[398941476,1766011838837,-1553.0,0.00013458,2]
[398941477,1766011838847,-329.0,0.0001346,2]
[398941478,1766011838857,-1653.0,0.00013484,2]
[398941479,1766011838866,-195.0,0.00013506,2]
[398941480,1766011838875,-193.0,0.00013506,2]
[398941481,1766011838884,-1915.14587518,0.00013511,2]
[398941482,1766011838894,-151.0,0.00013695,2]
[398941483,1766011838903,-500.0,0.00013698,2]
[398941484,1766011838912,-500.0,0.00013698,2]
[398941485,1766011838921,-500.0,0.00013698,2]
[398941486,1766011838931,-500.0,0.00013698,2]
[398941487,1766011838940,-500.0,0.00013698,2]
[398941488,1766011838950,-500.0,0.00013698,2]
[398941489,1766011838959,-500.0,0.00013698,2]
[398941490,1766011838968,-500.0,0.00013698,2]
[398941491,1766011838977,-300.24817944,0.00013698,2]
[398941492,1766011838987,-500.0,0.00013698,2]
[398941493,1766011838996,-500.0,0.00013698,2]
[398941494,1766011839006,-500.0,0.00013698,2]
[398941495,1766011839015,-500.0,0.00013698,2]
[398941496,1766011839024,-500.0,0.00013698,2]
[398941497,1766011839034,-500.0,0.00013698,2]
[398941498,1766011839044,-500.0,0.00013698,2]
[398941499,1766011839054,-500.0,0.00013698,2]
[398941500,1766011839067,-500.0,0.00013698,2]
[398941501,1766011839076,-500.0,0.00013698,2]
[398941502,1766011839085,-500.0,0.00013698,2]
[398941503,1766011839094,-500.0,0.00013698,2]
[398941504,1766011839104,-500.0,0.00013698,2]
[398941505,1766011839113,-500.0,0.00013698,2]
[398941506,1766011839122,-500.0,0.00013698,2]
[398941507,1766011839133,-500.0,0.00013698,2]
[398941508,1766011839142,-500.0,0.00013698,2]
[398941509,1766011839152,-500.0,0.00013698,2]
[398941510,1766011839161,-500.0,0.00013698,2]
[398941511,1766011839170,-500.0,0.00013698,2]
[398941512,1766011839178,-500.0,0.00013698,2]
[398941513,1766011839187,-500.0,0.00013698,2]
[398941514,1766011839196,-500.0,0.00013698,2]
[398941515,1766011839205,-500.0,0.00013698,2]
[398941516,1766011839214,-500.0,0.00013698,2]
[398941517,1766011839223,-500.0,0.00013698,2]
[398941518,1766011839232,-610.37514729,0.00013698,2]
[398941519,1766011839242,-4461.24,0.00013698,2]
[398941520,1766011839251,-4461.24,0.00013698,2]
[398941521,1766011839260,-4461.24,0.00013698,2]
[398941522,1766011839270,-4461.24,0.00013698,2]
[398941523,1766011839280,-4461.24,0.00013698,2]
[398941524,1766011839289,-4461.24,0.00013698,2]
[398941525,1766011839298,-4461.24,0.00013698,2]
[398941526,1766011839307,-4461.24,0.00013698,2]
[398941527,1766011839316,-4461.24,0.00013698,2]
[398941528,1766011839324,-4461.24,0.00013698,2]
[398941530,1766011839334,-4461.24,0.00013698,2]
[398941531,1766011839342,-4461.24,0.00013698,2]
[398941532,1766011839352,-4461.24,0.00013698,2]
[398941533,1766011839361,-4461.24,0.00013698,2]
[398941534,1766011839370,-4461.24,0.00013698,2]
[398941535,1766011839379,-4461.24,0.00013698,2]
[398941536,1766011839388,-4461.24,0.00013698,2]
[398941537,1766011839397,-4461.24,0.00013698,2]
[398941538,1766011839406,-4461.24,0.00013698,2]
[398941539,1766011839415,-4461.24,0.00013698,2]
[398941540,1766011839424,-4461.24,0.00013698,2]
[398941541,1766011839433,-4461.24,0.00013698,2]
[398941542,1766011839442,-4461.24,0.00013698,2]
[398941543,1766011839451,-4461.37,0.00013698,2]
[398941544,1766011839460,-500.0,0.00013698,2]
[398941545,1766011839469,-500.0,0.00013698,2]
[398941546,1766011839478,-500.0,0.00013698,2]
[398941547,1766011839487,-500.0,0.00013698,2]
[398941548,1766011839496,-500.0,0.00013698,2]
[398941549,1766011839505,-500.0,0.00013698,2]
[398941550,1766011839514,-500.0,0.00013698,2]
[398941551,1766011839523,-500.0,0.00013698,2]
[398941552,1766011839532,-500.0,0.00013698,2]
[398941553,1766011839541,-500.0,0.00013698,2]
[398941554,1766011839550,-500.0,0.00013698,2]
[398941555,1766011839559,-500.0,0.00013698,2]
[398941556,1766011839569,-500.0,0.00013698,2]
[398941557,1766011839578,-500.0,0.00013698,2]
[398941558,1766011839587,-500.0,0.00013698,2]
[398941559,1766011839596,-500.0,0.00013698,2]
[398941560,1766011839605,-500.0,0.00013698,2]
[398941561,1766011839615,-500.0,0.00013698,2]
[398941562,1766011839623,-500.0,0.00013698,2]
[398941563,1766011839632,-500.0,0.00013698,2]
[398941564,1766011839642,-500.0,0.00013698,2]
[398941565,1766011839651,-500.0,0.00013698,2]
[398941566,1766011839660,-500.0,0.00013698,2]
[398941567,1766011839669,-500.0,0.00013698,2]
[398941568,1766011839679,-300.0,0.00013698,2]
[398941569,1766011839688,-300.0,0.00013698,2]
[398941570,1766011839697,-300.0,0.00013698,2]
[398941571,1766011839706,-300.0,0.00013698,2]
[398941572,1766011839715,-300.0,0.00013698,2]
[398941573,1766011839724,-300.0,0.00013698,2]
[398941574,1766011839734,-300.0,0.00013698,2]
[398941575,1766011839743,-300.0,0.00013698,2]
[398941576,1766011839752,-300.0,0.00013698,2]
[398941577,1766011839761,-358.88934253,0.00013698,2]
[398941578,1766011839770,-500.0,0.00013698,2]
[398941579,1766011839780,-500.0,0.00013698,2]
[398941580,1766011839790,-500.0,0.00013698,2]
[398941581,1766011839799,-500.0,0.00013698,2]
[398941582,1766011839808,-500.0,0.00013698,2]
[398941583,1766011839818,-500.0,0.00013698,2]
[398941584,1766011839828,-500.0,0.00013698,2]
[398941585,1766011839838,-500.0,0.00013698,2]
[398941586,1766011839848,-500.0,0.00013698,2]
[398941588,1766011839857,-500.0,0.00013698,2]
[398941590,1766011839867,-500.0,0.00013698,2]
[398941591,1766011839876,-1000.0,0.00013698,2]
[398941594,1766011839886,-1000.0,0.00013698,2]
[398941596,1766011839895,-1000.0,0.00013698,2]
[398941598,1766011839904,-1000.0,0.00013698,2]
[398941600,1766011839913,-1000.0,0.00013698,2]
[398941602,1766011839922,-1000.0,0.00013698,2]
[398941604,1766011839930,-1000.0,0.00013698,2]
[398941606,1766011839939,-1000.0,0.00013698,2]
[398941608,1766011839949,-1000.0,0.00013698,2]
[398941609,1766011839958,-1000.0,0.00013698,2]
[398941612,1766011839967,-725.73772161,0.00013698,2]
[398941614,1766011839976,-500.0,0.00013698,2]
[398941615,1766011839985,-500.0,0.00013698,2]
[398941618,1766011839994,-500.0,0.00013698,2]
[398941620,1766011840004,-500.0,0.00013698,2]
[398941622,1766011840012,-500.0,0.00013698,2]
[398941623,1766011840021,-500.0,0.00013698,2]
[398941625,1766011840030,-500.0,0.00013698,2]
[398941627,1766011840039,-500.0,0.00013698,2]
[398941630,1766011840048,-500.0,0.00013698,2]
[398941632,1766011840061,-500.0,0.00013698,2]
[398941633,1766011840070,-166.66,0.00013699,2]
[398941635,1766011840079,-600.0,0.00013699,2]
[398941637,1766011840088,-500.0,0.00013699,2]
[398941639,1766011840097,-500.0,0.00013699,2]
[398941641,1766011840106,-253.91295482,0.00013699,2]
[398941643,1766011840115,-155.53,0.000137,2]
[398941645,1766011840125,-155.53,0.000137,2]
[398941648,1766011840137,-155.53,0.000137,2]
[398941649,1766011840147,-155.53,0.000137,2]
[398941652,1766011840156,-6070.12,0.000137,2]
[398941653,1766011840166,-6070.12,0.000137,2]
[398941655,1766011840175,-1659.55,0.00013714,2]
[398941657,1766011840185,-500.0,0.00013721,2]
[398941659,1766011840198,-17541.63723205,0.00013768,2]
[398941661,1766011840208,-1600.0,0.00013813,2]
[398941663,1766011840218,-20065.17829206,0.00013846,2]
[398941665,1766011840227,-300.0,0.00013847,2]
[398941667,1766011840236,-300.0,0.00013847,2]
[398941669,1766011840245,-293.11940388,0.00013856,2]
[398941671,1766011840255,-166.66,0.00013911,2]
[398941673,1766011840266,-300.0,0.00013917,2]
[398941675,1766011840275,-300.0,0.00013917,2]
[398941677,1766011840284,-300.0,0.00013917,2]
[398941679,1766011840293,-300.0,0.00013917,2]
[398941681,1766011840302,-300.0,0.00013917,2]
[398941683,1766011840312,-250.0,0.00013917,2]
[398941685,1766011840320,-1000.0,0.00013921,2]
[398941687,1766011840329,-1000.0,0.00013921,2]
[398941689,1766011840338,-168.84175508,0.00013921,2]
[398941691,1766011840347,-1149.79191981,0.00013921,2]
[398941693,1766011840357,-1000.0,0.00013921,2]
[398941695,1766011840366,-946.79619718,0.00013921,2]
[398941697,1766011840375,-255.0,0.00013979,2]
[398941699,1766011840384,-1659.55,0.00013988,2]
[398941701,1766011840393,-200.0,0.00013988,2]
[398941703,1766011840402,-200.0,0.00013988,2]
[398941705,1766011840411,-500.0,0.00013995,2]
[398941707,1766011840420,-443.62,0.00014001,2]
[398941709,1766011840430,-699.39853723,0.00014023,2]
[398941711,1766011840439,-420.0,0.00014038,2]
[398941713,1766011840448,-420.0,0.00014038,2]
[398941715,1766011840458,-1680.0,0.00014078,2]
[398941717,1766011840468,-166.66,0.00014123,2]
[398941719,1766011840476,-1242.58655811,0.00014205,2]
[398941721,1766011840486,-17541.63723205,0.00014215,2]
[398941723,1766011840495,-600.0,0.00014247,2]
[398941725,1766011840504,-1659.55,0.00014262,2]
[398941727,1766011840514,-500.0,0.00014269,2]
[398941729,1766011840523,-20065.17829206,0.00014282,2]
[398941731,1766011840533,-166.66,0.00014335,2]
[398941733,1766011840542,-293.11940382,0.00014363,2]
[398941735,1766011840551,-1500.0,0.00014468,2]
[398941737,1766011840561,-266.8433042,0.00014468,2]
[398941739,1766011840571,-1659.55,0.00014536,2]
[398941741,1766011840580,-200.0,0.00014536,2]
[398941743,1766011840589,-200.0,0.00014536,2]
[398941745,1766011840598,-500.0,0.00014543,2]
[398941747,1766011840608,-166.66,0.00014547,2]
[398941749,1766011840617,-17541.63723205,0.00014663,2]
[398941751,1766011840625,-20065.17829206,0.00014718,2]
[398941753,1766011840635,-166.66,0.00014759,2]
[398941755,1766011840645,-600.0,0.00014795,2]
[398941757,1766011840654,-1659.55,0.0001481,2]
[398941759,1766011840663,-500.0,0.00014817,2]
[398941761,1766011840672,-293.11940382,0.00014871,2]
[398941763,1766011840681,-1000.0,0.000149,2]
[398941765,1766011840690,-1750.73714884,0.00015016,2]
[398941767,1766011840699,-500.0,0.00015041,2]
[398941769,1766011840708,-1659.55,0.00015084,2]
[398941771,1766011840718,-200.0,0.00015084,2]
[398941773,1766011840727,-457.04108268,0.00015091,2]
[398941775,1766011840736,-17541.63723205,0.0001511,2]
[398941777,1766011840745,-20065.17829206,0.00015155,2]
[398941779,1766011840755,-433.0,0.00015176,2]
[398941781,1766011840765,-150.0,0.00015288,2]
[398941783,1766011840774,-150.00000001,0.00015288,2]
[398941785,1766011840783,-150.0,0.00015288,2]
[398941787,1766011840792,-150.0,0.00015288,2]
[398941789,1766011840801,-150.0,0.00015288,2]
[398941791,1766011840810,-150.0,0.00015288,2]
[398941793,1766011840819,-150.0,0.00015288,2]
[398941795,1766011840828,-150.0,0.00015288,2]
[398941797,1766011840838,-150.0,0.00015288,2]
[398941800,1766011840847,-150.0,0.00015288,2]
[398941801,1766011840856,-150.0,0.00015288,2]
[398941803,1766011840865,-150.0,0.00015288,2]
[398941806,1766011840875,-150.0,0.00015288,2]
[398941808,1766011840884,-150.0,0.00015288,2]
[398941810,1766011840893,-150.0,0.00015288,2]
[398941812,1766011840903,-150.0,0.0001531,2]
[398941814,1766011840912,-150.0,0.00015319,2]
[398941815,1766011840921,-150.0,0.00015322,2]
[398941817,1766011840930,-150.0,0.00015329,2]
[398941819,1766011840939,-150.0,0.00015332,2]
[398941821,1766011840947,-150.0,0.00015333,2]
[398941823,1766011840956,-150.0,0.00015342,2]
[398941825,1766011840965,-600.0,0.00015342,2]
[398941827,1766011840974,-1600.0,0.00015347,2]
[398941829,1766011840983,-150.0,0.00015351,2]
[398941831,1766011840992,-150.0,0.00015356,2]
[398941833,1766011841001,-150.0,0.00015356,2]
[398941835,1766011841010,-150.0,0.00015356,2]
[398941838,1766011841020,-1659.55,0.00015358,2]
[398941840,1766011841029,-150.0,0.00015371,2]
[398941841,1766011841038,-150.0,0.00015377,2]
[398941844,1766011841047,-293.11940382,0.00015378,2]
[398941845,1766011841057,-150.0,0.00015378,2]
[398941847,1766011841069,-150.0,0.00015382,2]
[398941850,1766011841079,-150.0,0.00015388,2]
[398941851,1766011841088,-150.0,0.0001539,2]
[398941854,1766011841099,-150.0,0.00015397,2]
[398941856,1766011841108,-587.0,0.00015398,2]
[398941858,1766011841117,-587.0,0.00015398,2]
[398941860,1766011841127,-150.0,0.00015401,2]
[398941862,1766011841139,-150.0,0.00015412,2]
[398941864,1766011841149,-150.0,0.00015413,2]
[398941866,1766011841158,-150.0,0.00015422,2]
[398941868,1766011841168,-150.0,0.00015424,2]
[398941869,1766011841178,-150.0,0.00015424,2]
[398941872,1766011841187,-150.0,0.00015424,2]
[398941874,1766011841196,-150.0,0.00015442,2]
[398941876,1766011841206,-150.0,0.00015445,2]
[398941878,1766011841215,-150.0,0.00015446,2]
[398941880,1766011841225,-150.0,0.00015452,2]
[398941881,1766011841234,-150.0,0.00015453,2]
[398941882,1766011841243,-150.0,0.00015458,2]
[398941883,1766011841254,-150.0,0.00015466,2]
[398941884,1766011841263,-150.0,0.00015469,2]
[398941885,1766011841272,-500.0,0.00015473,2]
[398941886,1766011841281,-500.0,0.00015473,2]
[398941887,1766011841290,-500.0,0.00015473,2]
[398941888,1766011841299,-500.0,0.00015473,2]
[398941889,1766011841309,-500.0,0.00015473,2]
[398941890,1766011841318,-270.30071685,0.00015473,2]
[398941892,1766011841327,-500.0,0.00015473,2]
[398941894,1766011841336,-530.10800238,0.00015473,2]
[398941896,1766011841345,-500.0,0.00015473,2]
[398941898,1766011841354,-500.0,0.00015473,2]
[398941900,1766011841363,-500.0,0.00015473,2]
[398941902,1766011841371,-500.0,0.00015473,2]
[398941904,1766011841381,-500.0,0.00015473,2]
[398941906,1766011841390,-500.0,0.00015473,2]
[398941908,1766011841399,-500.0,0.00015473,2]
[398941910,1766011841408,-500.0,0.00015473,2]
[398941912,1766011841417,-500.0,0.00015473,2]
[398941914,1766011841426,-500.0,0.00015473,2]
[398941916,1766011841435,-150.0,0.00015476,2]
[398941918,1766011841444,-150.0,0.00015476,2]
[398941920,1766011841453,-2351.0,0.00015485,2]
[398941922,1766011841462,-150.0,0.00015488,2]
[398941924,1766011841471,-150.0,0.00015492,2]
[398941926,1766011841480,-150.0,0.00015492,2]
[398941928,1766011841489,-150.0,0.00015492,2]
[398941930,1766011841498,-150.0,0.00015495,2]
[398941932,1766011841506,-150.0,0.000155,2]
[398941934,1766011841515,-150.0,0.00015507,2]
[398941936,1766011841524,-150.0,0.00015508,2]
[398941938,1766011841533,-150.0,0.00015511,2]
[398941940,1766011841541,-150.0,0.00015514,2]
[398941942,1766011841550,-150.0,0.00015525,2]
[398941944,1766011841559,-150.0,0.00015536,2]
[398941946,1766011841568,-150.0,0.00015537,2]
[398941948,1766011841577,-150.0,0.00015539,2]
[398941950,1766011841587,-150.0,0.00015556,2]
[398941952,1766011841595,-17541.63723205,0.00015558,2]
[398941954,1766011841604,-150.0,0.00015559,2]
[398941956,1766011841613,-150.0,0.00015559,2]
[398941958,1766011841622,-150.0,0.00015559,2]
[398941960,1766011841631,-150.0,0.00015562,2]
[398941962,1766011841640,-150.0,0.00015571,2]
[398941964,1766011841649,-1000.0,0.00015575,2]
[398941966,1766011841658,-150.0,0.00015578,2]
[398941968,1766011841668,-150.0,0.00015582,2]
[398941970,1766011841677,-150.0,0.00015587,2]
[398941972,1766011841686,-20065.17829206,0.00015591,2]
[398941974,1766011841695,-150.0,0.00015593,2]
[398941976,1766011841704,-150.0,0.00015597,2]
[398941978,1766011841713,-150.0,0.00015601,2]
[398941980,1766011841721,-150.0,0.00015602,2]
[398941982,1766011841731,-150.0,0.00015605,2]
[398941984,1766011841740,-500.0,0.00015616,2]
[398941986,1766011841749,-150.0,0.00015616,2]
[398941988,1766011841758,-150.0,0.00015619,2]
[398941990,1766011841768,-150.0,0.00015627,2]
[398941992,1766011841777,-150.0,0.00015627,2]
[398941994,1766011841787,-150.0,0.00015627,2]
[398941996,1766011841796,-150.0,0.00015627,2]
[398941998,1766011841805,-207.4,0.00015631,2]
[398942000,1766011841814,-1659.55,0.00015632,2]
[398942002,1766011841823,-200.0,0.00015632,2]
[398942004,1766011841832,-150.0,0.00015634,2]
[398942006,1766011841841,-150.0,0.00015645,2]
[398942008,1766011841850,-150.0,0.0001565,2]
[398942010,1766011841859,-150.0,0.00015661,2]
[398942013,1766011841868,-150.0,0.00015661,2]
[398942015,1766011841877,-150.0,0.00015665,2]
[398942017,1766011841886,-150.0,0.00015665,2]
[398942019,1766011841896,-150.0,0.00015671,2]
[398942020,1766011841905,-150.0,0.00015673,2]
[398942021,1766011841914,-150.0,0.00015682,2]
[398942022,1766011841923,-150.0,0.00015682,2]
[398942023,1766011841934,-150.0,0.00015682,2]
[398942024,1766011841944,-500.0,0.00015682,2]
[398942025,1766011841955,-150.0,0.00015682,2]
[398942026,1766011841965,-150.0,0.00015682,2]
[398942027,1766011841974,-150.0,0.00015682,2]
[398942028,1766011841983,-500.0,0.00015682,2]
[398942029,1766011841992,-150.0,0.00015682,2]
[398942030,1766011842004,-150.0,0.00015682,2]
[398942031,1766011842013,-150.0,0.00015682,2]
[398942032,1766011842023,-234.17527772,0.00015682,2]
[398942033,1766011842032,-150.0,0.00015682,2]
[398942034,1766011842041,-200.0,0.00015682,2]
[398942035,1766011842051,-500.0,0.00015682,2]
[398942036,1766011842064,-500.0,0.00015682,2]
[398942037,1766011842073,-500.0,0.00015682,2]
[398942038,1766011842082,-530.0,0.00015682,2]
[398942039,1766011842091,-500.0,0.00015682,2]
[398942040,1766011842100,-500.0,0.00015682,2]
[398942041,1766011842109,-500.0,0.00015682,2]
[398942042,1766011842118,-500.0,0.00015682,2]
[398942043,1766011842128,-500.0,0.00015682,2]
[398942044,1766011842139,-500.0,0.00015682,2]
[398942045,1766011842149,-150.0,0.00015682,2]
[398942046,1766011842159,-150.0,0.00015682,2]
[398942047,1766011842170,-150.0,0.00015682,2]
[398942048,1766011842181,-150.0,0.00015682,2]
[398942049,1766011842191,-150.0,0.00015682,2]
[398942050,1766011842202,-150.0,0.00015687,2]
[398942051,1766011842211,-150.0,0.0001569,2]
[398942052,1766011842222,-253.87,0.00015692,2]
[398942053,1766011842233,-150.0,0.00015695,2]
[398942054,1766011842243,-150.0,0.00015695,2]
[398942055,1766011842254,-150.0,0.00015695,2]
[398942056,1766011842263,-150.0,0.00015697,2]
[398942057,1766011842273,-150.0,0.00015702,2]
[398942058,1766011842283,-150.0,0.00015712,2]
[398942059,1766011842292,-150.0,0.00015718,2]
[398942060,1766011842302,-150.0,0.00015726,2]
[398942061,1766011842311,-150.0,0.00015728,2]
[398942062,1766011842320,-150.0,0.00015729,2]
[398942063,1766011842615,-150.0,0.00015735,2]
[398942064,1766011842627,-150.0,0.00015741,2]
[398942065,1766011842636,-150.0,0.00015743,2]
[398942066,1766011842645,-150.0,0.00015751,2]
[398942067,1766011842654,-150.0,0.0001576,2]
[398942068,1766011842663,-150.0,0.00015763,2]
[398942069,1766011842673,-150.0,0.00015763,2]
[398942070,1766011842682,-150.0,0.00015763,2]
[398942071,1766011842691,-150.0,0.00015779,2]
[398942072,1766011842701,-150.0,0.00015781,2]
[398942073,1766011842710,-150.0,0.00015785,2]
[398942074,1766011842719,-150.0,0.00015786,2]
[398942075,1766011842729,-150.0,0.00015787,2]
[398942076,1766011842738,-150.0,0.00015791,2]
[398942077,1766011842747,-150.0,0.00015797,2]
[398942078,1766011842756,-150.0,0.00015809,2]
[398942079,1766011842766,-500.0,0.00015818,2]
[398942080,1766011842775,-500.0,0.00015818,2]
[398942081,1766011842784,-500.0,0.00015818,2]
[398942083,1766011842795,-500.0,0.00015818,2]
[398942084,1766011842804,-500.0,0.00015818,2]
[398942085,1766011842813,-500.0,0.00015818,2]
[398942086,1766011842822,-500.0,0.00015818,2]
[398942087,1766011842831,-212.04843523,0.00015819,2]
[398942088,1766011842840,-150.0,0.00015819,2]
[398942090,1766011842850,-150.0,0.00015819,2]
[398942091,1766011842859,-500.0,0.00015819,2]
[398942092,1766011842868,-155.2202106,0.00015819,2]
[398942093,1766011842878,-218.86787241,0.00015819,2]
[398942095,1766011842887,-150.0,0.00015819,2]
[398942097,1766011842896,-500.0,0.00015819,2]
[398942098,1766011842906,-295.67984655,0.00015819,2]
[398942099,1766011842915,-150.0,0.00015819,2]
[398942100,1766011842924,-150.0,0.00015819,2]
[398942101,1766011842934,-500.0,0.00015819,2]
[398942102,1766011842943,-500.0,0.00015819,2]
[398942103,1766011842952,-500.0,0.00015819,2]
[398942104,1766011842962,-530.0,0.00015819,2]
[398942105,1766011842971,-500.0,0.00015819,2]
[398942106,1766011842980,-500.0,0.00015819,2]
[398942107,1766011842989,-637.90738229,0.00015819,2]
[398942108,1766011842999,-500.0,0.00015819,2]
[398942109,1766011843009,-500.0,0.00015819,2]
[398942110,1766011843019,-500.0,0.00015819,2]
[398942111,1766011843028,-254.69767392,0.00015819,2]
[398942112,1766011843038,-150.0,0.00015819,2]
[398942113,1766011843049,-150.0,0.00015819,2]
[398942114,1766011843064,-150.0,0.00015822,2]
[398942115,1766011843079,-150.0,0.00015824,2]
[398942116,1766011843088,-150.0,0.00015826,2]
[398942117,1766011843098,-150.0,0.00015831,2]
[398942118,1766011843110,-150.0,0.00015831,2]
[398942119,1766011843120,-150.0,0.00015831,2]
[398942120,1766011843129,-150.0,0.00015836,2]
[398942121,1766011843141,-150.0,0.00015854,2]
[398942122,1766011843152,-150.0,0.00015854,2]
[398942123,1766011843162,-150.0,0.00015854,2]
[398942124,1766011843172,-150.0,0.00015865,2]
[398942125,1766011843181,-150.0,0.00015868,2]
[398942126,1766011843191,-150.0,0.00015869,2]
[398942127,1766011843200,-150.0,0.00015877,2]
[398942128,1766011843210,-293.11940382,0.00015885,2]
[398942129,1766011843219,-150.0,0.00015885,2]
[398942130,1766011843228,-150.0,0.00015887,2]
[398942131,1766011843237,-150.0,0.0001589,2]
[398942132,1766011843247,-600.0,0.0001589,2]
[398942133,1766011843256,-150.0,0.00015899,2]
[398942134,1766011843266,-150.0,0.00015899,2]
[398942135,1766011843275,-150.0,0.00015899,2]
[398942136,1766011843285,-150.0,0.00015905,2]
[398942137,1766011843294,-1659.55,0.00015906,2]
[398942138,1766011843304,-150.0,0.00015909,2]
[398942139,1766011843315,-150.0,0.00015913,2]
[398942140,1766011843327,-150.0,0.00015917,2]
[398942141,1766011843340,-150.0,0.00015922,2]
[398942142,1766011843350,-150.0,0.00015925,2]
[398942143,1766011843359,-150.0,0.00015933,2]
[398942144,1766011843369,-150.0,0.00015944,2]
[398942145,1766011843378,-150.0,0.00015945,2]
[398942146,1766011843388,-150.0,0.00015948,2]
[398942147,1766011843397,-150.0,0.00015951,2]
[398942148,1766011843407,-150.0,0.00015956,2]
[398942149,1766011843417,-150.0,0.00015956,2]
[398942150,1766011843426,-500.0,0.00015956,2]
[398942151,1766011843436,-150.0,0.00015956,2]
[398942152,1766011843446,-500.0,0.00015956,2]
[398942153,1766011843456,-272.6774988,0.00015956,2]
[398942154,1766011843465,-150.0,0.00015956,2]
[398942155,1766011843475,-500.0,0.00015956,2]
[398942156,1766011843484,-500.0,0.00015956,2]
[398942157,1766011843493,-500.0,0.00015956,2]
[398942158,1766011843503,-530.0,0.00015956,2]
[398942159,1766011843512,-500.0,0.00015956,2]
[398942160,1766011843522,-500.0,0.00015956,2]
[398942161,1766011843531,-500.0,0.00015956,2]
[398942162,1766011843541,-250.0,0.00015956,2]
[398942163,1766011843550,-500.0,0.00015956,2]
[398942164,1766011843559,-150.0,0.00015956,2]
[398942165,1766011843569,-150.0,0.00015958,2]
[398942166,1766011843578,-150.0,0.00015967,2]
[398942167,1766011843587,-150.0,0.00015967,2]
[398942168,1766011843597,-150.0,0.00015967,2]
[398942169,1766011843606,-150.0,0.00015967,2]
[398942170,1766011843615,-150.0,0.0001598,2]
[398942171,1766011843627,-150.0,0.00015987,2]
[398942172,1766011843637,-150.0,0.0001599,2]
[398942173,1766011843647,-150.0,0.00015992,2]
[398942174,1766011843656,-150.0,0.00016,2]
[398942175,1766011843666,-150.0,0.00016001,2]
[398942176,1766011843676,-150.0,0.00016003,2]
[398942177,1766011843686,-17541.63723205,0.00016005,2]
[398942178,1766011843695,-150.0,0.00016011,2]
[398942179,1766011843705,-150.0,0.00016012,2]
[398942180,1766011843714,-10000.0,0.00016017,2]
[398942181,1766011843724,-669.93256308,0.00016021,2]